[Event "Fredericia IM 2022"]
[Site "Fredericia"]
[Date "2022.05.26"]
[Round "2.5"]
[White "Fries Nielsen, Jens Ove"]
[Black "Ramsdal, Jens Albert"]
[Result "0-1"]
[ECO "A45"]
[WhiteElo "2370"]
[BlackElo "2267"]
[Annotator "TA"]
[PlyCount "90"]
[EventDate "2022.05.25"]
[EventType "tourn"]
[EventCountry "DEN"]
[SourceTitle "playchess.com"]
[Source "ChessBase"]
[SourceQuality "1"]
[TimeControl "40/5400+30:1800+30"]

{[%evp 9,90,-7,0,-6,29,20,18,0,6,3,0,-20,-27,-28,-17,-31,-27,-25,-15,-28,-14,-16,-25,-25,-25,-51,-54,-54,-49,-42,-54,-56,-58,-118,-113,-118,-118,-119,-118,-110,-108,-101,-99,-109,-111,-105,-79,-113,-83,-128,-131,-155,-64,-199,-202,-194,-191,-201,-201,-183,-205,-191,-191,-200,-195,-209,-196,-227,-250,-222,-222,-244,-229,-286,-300,-291,-279,-283,-220,-269,-281,-259,-258]} 1. d4 {[%emt 0:00:29]} Nf6 {[%emt 0:00:15]} 2. Nc3 {[%emt 0:00:46]} d5 {[%emt 0:00:18]} 3. Bf4 {[%emt 0:00:16]} e6 {[%emt 0:01:46]} 4. Nb5 {[%emt 0:01:21]} Na6 {[%emt 0:12:35]} 5. e3 {[%emt 0:00:56]} c6 {[%emt 0:06:31]} 6. Nc3 {[%emt 0:02:47] D00: 1 d4 d5: Unusual lines.} b5 {[%emt 0:01:57]} 7. Bd3 {[%emt 0:05:58] [#]} b4 $146 {[%emt 0:02:32]} ({Predecessor:} 7... Bd6 8. Nf3 O-O 9. O-O Nb4 10. a3 Nxd3 11. cxd3 a5 12. Rc1 Ba6 13. Ne2 Rc8 14. Bxd6 Qxd6 {0-1 (31) Mikhailovsky,V (2228)-Semenova,E (2283) Chess.com INT 2020}) 8. Na4 {[%emt 0:02:53] The position is equal.} Qa5 {[%emt 0:03:10]} 9. b3 {[%emt 0:03:17]} c5 {[%emt 0:05:43][%cal Oc5c4]} 10. dxc5 {[%emt 0:12:14]} Bd7 {[%emt 0:04:24]} 11. Qe2 {[%emt 0:01:42]} Nxc5 {[%emt 0:10:56]} 12. Nxc5 {[%emt 0:00:24]} Qxc5 {[%emt 0:00:14]} 13. Be5 {[%emt 0:00:24] Against Qc3+} Bd6 {[%emt 0:00:54]} 14. Bd4 {[%emt 0:01:05]} Qc7 {[%emt 0:00:06]} 15. f4 {[%emt 0:00:44]} Bc5 {[%emt 0:04:22] Hoping for ...Bxd4.} 16. Nf3 {[%emt 0:01:16]} Bxd4 {[%emt 0:03:28]} 17. Nxd4 {[%emt 0:02:22]} Qc3+ {[%emt 0:02:05]} 18. Kf2 {[%emt 0:00:24]} e5 $36 {[%emt 0:01:10][%mdl 2048] Black fights for an advantage.} 19. fxe5 {[%emt 0:02:29]} Ng4+ {[%emt 0:00:57]} 20. Kg3 {[%emt 0:00:09][%cal Oe5e6] Black must now prevent e6!} Qc7 {[%emt 0:06:27]} 21. Bb5 {[%emt 0:14:14]} (21. Bf5 $15 Nxe5 22. Rhf1) 21... Qxe5+ $17 {[%emt 0:02:17]} 22. Kf3 {[%emt 0:00:01] And now Bxd7+ would win.} Qf6+ {[%emt 0:04:39]} ({Don't play} 22... Nxh2+ $6 23. Rxh2 $1 {[%mdl 512]} Qxh2 24. Bxd7+ Kxd7 25. Qb5+ Kc8 26. Qxd5 $11) 23. Kg3 {[%emt 0:00:22]} Qd6+ {[%emt 0:00:11]} 24. Kf3 {[%emt 0:00:25]} Rb8 {[%emt 0:06:30] Black is more active.} (24... Nxh2+ 25. Kf2 $18) ({Inferior is} 24... Qf6+ 25. Kg3 Qd6+ 26. Kf3 $15) 25. Bxd7+ {[%emt 0:00:53]} Qxd7 {[%emt 0:00:09]} 26. h3 {[%emt 0:08:42] [#]} Nf6 {[%emt 0:00:23]} 27. g3 {[%emt 0:02:10]} h5 {[%emt 0:05:04][%cal Bh7h5,Bh5h4][%mdl 32]} 28. Kg2 {[%emt 0:00:19]} h4 {[%emt 0:00:07]} 29. g4 {[%emt 0:00:26]} Ne4 {[%emt 0:00:11] Against Qf2} 30. Qf3 {[%emt 0:00:17]} Rb6 {[%emt 0:01:40]} ({Better is} 30... O-O $17 {aiming for ...Rb6.} 31. Rhf1 Ng3) 31. Qf4 {[%emt 0:02:29] Now White is beyond hope.} (31. Qf5 $1 $15) 31... O-O $19 {[%emt 0:00:29]} 32. Rhf1 Rf6 {[%emt 0:01:20]} 33. Qe5 {[%emt 0:04:52]} Re8 {[%emt 0:00:43]} 34. Qh2 {[%emt 0:01:55]} Rxf1 {[%emt 0:00:26]} 35. Rxf1 {[%emt 0:00:24] [#]} Ng3 $1 {[%emt 0:00:14]} 36. Rf3 {[%emt 0:00:17]} Qc7 {[%emt 0:04:26]} 37. Qg1 {[%emt 0:00:40]} Qc3 {[%emt 0:00:06] Against Qe1} 38. Qf2 {[%emt 0:00:49]} Qa1 {[%emt 0:02:55][%csl Gg3][%cal Ra1h1]} 39. Qg1 {[%emt 0:00:52] Against Qh1+} Qxa2 {[%emt 0:02:37]} 40. Qd1 {[%emt 0:03:12]} Qa5 {[%emt 0:00:50]} 41. Nf5 {[%emt 0:32:55]} Nxf5 {[%emt 0:31:23]} 42. gxf5 {[%emt 0:00:05]} Qc5 {[%emt 0:01:30]} 43. Qd3 {[%emt 0:01:33]} Rc8 {[%emt 0:00:00]} 44. Rf2 {[%emt 0:00:00]} Qd6 {[%emt 0:00:00]} 45. Rf4 {[%emt 0:00:00]} Rc3 {[%emt 0:00:00] Weighted Error Value: White=0.17 (very precise) /Black=0.07 (flawless)} 0-1

[Event "Fredericia IM 2022"]
[Site "Fredericia"]
[Date "2022.05.26"]
[Round "2.5"]
[White "Fries Nielsen, IM Jens Ove"]
[Black "Ramsdal, FM Jens Albert"]
[Result "*"]
[ECO "A45"]
[WhiteElo "2370"]
[BlackElo "2267"]
[Annotator "TA"]
[PlyCount "18"]
[EventDate "2022.05.25"]
[EventType "tourn"]
[EventCountry "DEN"]
[SourceTitle "playchess.com"]
[Source "ChessBase"]
[SourceQuality "1"]
[TimeControl "40/5400+30:1800+30"]

{[%evp 9,18,-6,0,-4,31,6,13,2,0,0,13]} 1. d4 {[%emt 0:00:29]} Nf6 {[%emt 0:00:15]} 2. Nc3 {[%emt 0:00:46]} d5 {[%emt 0:00:18]} 3. Bf4 {[%emt 0:00:16]} e6 {[%emt 0:01:46]} 4. Nb5 {[%emt 0:01:21]} Na6 {[%emt 0:12:35]} 5. e3 {[%emt 0:00:56]} c6 {[%emt 0:06:31][%cal Bc7c6,Bc6c5][%mdl 32]} 6. Nc3 {[%emt 0:02:47] D00: 1 d4 d5: Unusual lines.} b5 {[%emt 0:01:57]} 7. Bd3 {[%emt 0:05:58] [#]} b4 $146 {[%emt 0:02:32] The position is equal.} ({Predecessor:} 7... Bd6 8. Nf3 O-O 9. O-O Nb4 10. a3 Nxd3 11. cxd3 a5 12. Rc1 Ba6 13. Ne2 Rc8 14. Bxd6 Qxd6 {0-1 (31) Mikhailovsky,V (2228)-Semenova,E (2283) Chess.com INT 2020}) 8. Na4 {[%emt 0:02:53]} Qa5 {[%emt 0:03:10]} 9. b3 {[%emt 0:03:17]} c5 $1 {[%emt 0:05:43] A rather calm draw.  Weighted Error Value: White=0.11 (very precise) /Black=0.09 (flawless)} *

[Event "Fredericia IM 2022"]
[Site "Fredericia"]
[Date "2022.05.26"]
[Round "3.1"]
[White "Bogdanov, Egor"]
[Black "Boe, Mads"]
[Result "1-0"]
[ECO "B12"]
[WhiteElo "2415"]
[BlackElo "2293"]
[Annotator "TA"]
[PlyCount "77"]
[EventDate "2022.05.25"]
[EventType "tourn"]
[EventCountry "DEN"]
[SourceTitle "playchess.com"]
[Source "ChessBase"]
[SourceQuality "1"]
[TimeControl "40/5400+30:1800+30"]

{[%evp 9,77,4,20,-14,4,2,20,2,31,39,36,0,29,9,34,33,39,42,39,32,58,47,74,80,68,57,72,40,70,28,151,143,121,131,121,114,193,140,311,132,311,311,284,84,338,88,90,0,0,0,0,0,0,0,0,0,23,8,8,8,8,8,8,16,29995,29996,29996,29997,29997,29998]} 1. e4 {[%emt 0:00:07]} c6 {[%emt 0:00:37]} 2. d4 {[%emt 0:00:08]} d5 {[%emt 0:00:05]} 3. e5 {[%emt 0:00:11]} c5 {[%emt 0:00:07]} 4. dxc5 {[%emt 0:00:04]} e6 {[%emt 0:00:37]} 5. a3 {[%emt 0:00:06]} Bxc5 {[%emt 0:00:21]} 6. b4 {[%emt 0:00:43] B12: Caro-Kann: Advance Variation.} Bb6 {[%emt 0:00:07]} 7. Nf3 {[%emt 0:00:14]} Ne7 {[%emt 0:01:29]} 8. Bd3 {[%emt 0:01:29] The position is equal.} Nbc6 {[%emt 0:02:49]} 9. Bb2 {[%emt 0:04:18]} Ng6 {[%emt 0:00:33]} 10. b5 {[%emt 0:00:56]} Na5 {[%emt 0:07:27]} 11. g3 {[%emt 0:01:13]} Bd7 {[%emt 0:01:08]} 12. Nbd2 {[%emt 0:01:25]} Rc8 {[%emt 0:02:17]} 13. Qe2 {[%emt 0:00:13]} O-O {[%emt 0:03:02]} 14. O-O {[%emt 0:02:04] [#]} a6 $146 {[%emt 0:15:27]} ({Predecessor:} 14... Qc7 15. Rac1 Nc4 16. Bxc4 dxc4 17. Ne4 Bxb5 18. Nd6 Bc6 19. Nxc8 Rxc8 20. Rcd1 Bd5 {0-1 (46) Skliarov,V (2387)-Tabatabaei,M (2623) Chess.com INT 2022}) 15. a4 {[%emt 0:01:07]} axb5 {[%emt 0:02:25]} 16. axb5 {[%emt 0:00:08]} Bc5 {[%emt 0:02:28]} 17. h4 {[%emt 0:01:29]} h6 {[%emt 0:10:59] Prevents Ng5.} 18. Rfd1 {[%emt 0:11:25]} b6 {[%emt 0:02:20]} 19. c4 {[%emt 0:01:10]} dxc4 {[%emt 0:05:20]} (19... Qc7 $11 {keeps the balance.}) 20. Nxc4 $16 {[%emt 0:00:15]} ({Don't play} 20. Bxc4 $6 Nxc4 21. Nxc4 Ne7 $14) 20... Nxc4 {[%emt 0:01:19]} 21. Bxc4 {[%emt 0:00:05]} Re8 {[%emt 0:01:50]} 22. Bd3 {[%emt 0:03:09]} Re7 {[%emt 0:11:00]} (22... Ne7 $16 23. Qe4 Nf5) 23. Ra4 {[%emt 0:03:35]} (23. Nd2 $18) 23... Qc7 $2 {[%emt 0:03:17]} (23... Nf8 $16 24. Nd4 Ra8) 24. Rg4 {[%emt 0:00:21]} (24. h5 $18) 24... Be8 $2 {[%emt 0:01:52]} (24... h5 $16 25. Ra4 Be8) 25. h5 $18 {[%emt 0:01:18]} Nf8 {[%emt 0:00:07]} 26. Bc1 $2 {[%emt 0:00:16]} (26. Nd2 $1 $18) 26... Kh8 $2 {[%emt 0:02:00][%mdl 8192] [#]} (26... Nh7 $16) 27. Qd2 $2 {[%emt 0:06:33]} (27. Bxh6 $1 $18 {[%mdl 512] and the rest is easy.} gxh6 28. Qd2) 27... Rd7 $16 {[%emt 0:05:30] [#]} 28. Rxg7 {[%emt 0:03:46] White is more active.} Kxg7 $11 {[%emt 0:00:06]} 29. Qxh6+ {[%emt 0:00:02]} Kg8 {[%emt 0:00:09] Strongly threatening ...f5.} 30. Qg5+ $40 {[%emt 0:04:50][%mdl 128] Black needs to defend precisely.} Ng6 $1 {[%emt 0:01:38]} 31. hxg6 {[%emt 0:00:17]} fxg6 {[%emt 0:00:06][%cal Od7d3] aiming for ...Rxd3!} 32. Kg2 {[%emt 0:16:31] Hoping for Qg4.} Qd8 {[%emt 0:02:09] [#]} 33. Qg4 $1 {[%emt 0:00:43]} Rxd3 {[%emt 0:07:07]} 34. Rxd3 {[%emt 0:00:12]} Qxd3 {[%emt 0:00:11]} 35. Qxe6+ {[%emt 0:00:04]} Kg7 {[%emt 0:01:44]} 36. Qxc8 {[%emt 0:03:26] Chess con chili.} Bxb5 {[%emt 0:00:06][%mdl 8192] [#]} (36... Qe2 $11 37. Qb7+ (37. Qxe8 Qxf2+ 38. Kh3 Qxf3 $11) 37... Kh8) 37. Bh6+ $1 {[%emt 0:01:55][%mdl 512] White mates.} Kh7 {[%emt 0:00:06]} 38. Ng5+ {[%emt 0:00:40]} Kxh6 {[%emt 0:00:50]} 39. Qh3+ {[%emt 0:00:10] Weighted Error Value: White=0.36/Black=0.64} 1-0

[Event "Fredericia IM 2022"]
[Site "Fredericia"]
[Date "2022.05.26"]
[Round "3.2"]
[White "Ramsdal, Jens Albert"]
[Black "Hilwerda, Jonas"]
[Result "1-0"]
[ECO "A05"]
[WhiteElo "2267"]
[BlackElo "2275"]
[Annotator "TA"]
[PlyCount "83"]
[EventDate "2022.05.25"]
[EventType "tourn"]
[EventCountry "DEN"]
[SourceTitle "playchess.com"]
[Source "ChessBase"]
[SourceQuality "1"]
[TimeControl "40/5400+30:1800+30"]

{[%evp 9,83,24,18,0,20,23,32,-1,17,-7,0,-13,-12,-8,-25,-32,-22,-68,-61,-89,-62,-54,-49,-129,-118,-121,-9,-101,-45,-111,-97,-97,-95,-156,-56,-111,-41,-100,-98,-176,-179,-162,-89,-146,-132,-249,0,0,60,58,42,44,50,79,477,446,451,482,552,564,745,723,710,701,1269,959,991,965,2221,2178,29990,1975,5015,1843,29989,29990]} 1. Nf3 {[%emt 0:00:10]} Nf6 {[%emt 0:00:16]} 2. c4 {[%emt 0:00:09]} g6 {[%emt 0:00:09]} 3. Nc3 {[%emt 0:00:35]} d5 {[%emt 0:00:06]} 4. cxd5 {[%emt 0:06:05]} Nxd5 {[%emt 0:00:10]} 5. h4 {[%emt 0:01:30][%cal Bh2h4,Bh4h5][%mdl 32]} Bg7 {[%emt 0:00:06]} 6. h5 {[%emt 0:04:05] A16: English Opening: 1...Nf6 with ...d5.} Nxc3 {[%emt 0:01:37]} 7. bxc3 {[%emt 0:00:15]} c5 {[%emt 0:02:46]} 8. e4 {[%emt 0:01:37] White is slightly better.} Nc6 {[%emt 0:03:42] [#]} 9. Be2 $146 {[%emt 0:13:02]} ({Predecessor:} 9. Bb5 O-O 10. Ba3 Qb6 11. Rb1 a6 12. Bc4 Qc7 13. Qe2 Qa5 14. hxg6 hxg6 15. Nh4 {0-1 (26) Mikhalevski,V (2573)-Korobov,A (2685) Struga 2021}) 9... Bg4 {[%emt 0:15:16]} 10. Qb3 {[%emt 0:12:05] Ng5 is the strong threat.} O-O {[%emt 0:16:06]} 11. hxg6 {[%emt 0:06:31]} (11. Qxb7 Nb4 12. cxb4 Bxa1 13. hxg6 (13. bxc5 Bxh5 14. O-O Rb8 $17) 13... hxg6 14. bxc5 Rb8 15. Qxa7 Bxf3 16. Bxf3 (16. gxf3 $2 Bb2 $19) 16... Qd3 $17) 11... hxg6 {[%emt 0:00:23]} 12. Ba3 {[%emt 0:11:29]} b6 {[%emt 0:06:43]} 13. Rh4 {[%emt 0:05:43]} (13. Rd1 $11) 13... Bxf3 $15 {[%emt 0:08:27]} 14. gxf3 {[%emt 0:00:09]} e6 {[%emt 0:03:45]} 15. Rh3 {[%emt 0:04:15]} Qg5 {[%emt 0:03:22]} 16. Rg3 {[%emt 0:00:25]} (16. Rd1 $1 $15) 16... Qh4 $17 {[%emt 0:01:37]} 17. O-O-O {[%emt 0:01:23]} Be5 {[%emt 0:04:04]} (17... Qh2 $17 18. Rf1 Qh6) 18. Rg2 {[%emt 0:02:48]} (18. Rxg6+ $1 $11 fxg6 19. Qxe6+ Kg7 20. Qxc6) 18... Rfd8 {[%emt 0:01:34]} (18... Na5 $17 19. Qb5 Rac8) 19. Kb1 {[%emt 0:02:36]} (19. Rxg6+ $1 $15 fxg6 20. Qxe6+ Kg7 21. Qxc6) 19... Na5 {[%emt 0:10:15]} 20. Qc2 {[%emt 0:02:49]} ({But not} 20. Rxg6+ $2 Kf8 21. Rg4 Qxf2 $19) 20... c4 {[%emt 0:03:23]} 21. Rf1 {[%emt 0:06:43]} (21. f4 $142 Bxf4 22. e5 Rxd2 23. Qe4 Rxd1+ 24. Bxd1) 21... Qh6 {[%emt 0:07:45]} (21... Qf6 $17 22. Rd1 Rd7) 22. Rd1 {[%emt 0:04:23]} (22. Be7 $15) 22... Bf4 {[%emt 0:01:32]} (22... Rd7 $17 23. Bc1 Rad8) 23. Bc1 {[%emt 0:04:38]} (23. Be7 $1 $15 Rxd2 24. Rxd2 Bxd2 25. Bd1) 23... Rd7 {[%emt 0:01:58]} 24. e5 {[%emt 0:01:11] [#]} (24. Qa4 $17 {might work better.} Rad8 25. Qb5) 24... Rad8 $1 $19 {[%emt 0:01:36]} (24... Bxe5 25. Qe4 Rd5 26. d4 $16) 25. Rdg1 {[%emt 0:01:38][%cal Rg2g6]} Kg7 {[%emt 0:00:30]} ({Black should try} 25... Qh5 $19 26. Qe4 Qxe5 27. Qxe5 Bxe5) 26. Qe4 $17 {[%emt 0:04:09]} Bxd2 {[%emt 0:01:42]} 27. Bb2 {[%emt 0:00:05] [#]} (27. Ba3 $17 Rd5 28. Be7 Rb5+ 29. Kc2) 27... b5 $2 {[%emt 0:02:52]} ({Black should play} 27... Nb7 $1 $19 {Threatens to win with ...Nc5.} 28. Qxc4 Nc5) 28. Rg4 $11 {[%emt 0:00:47] Black must now prevent Rh4.} Qh5 {[%emt 0:00:42]} ({Better is} 28... Nb7 $1 $11 29. f4 Nc5) 29. Rh4 $14 {[%emt 0:01:56]} Qf5 {[%emt 0:00:50]} 30. Qxf5 {[%emt 0:00:20] Chess con chili.} exf5 {[%emt 0:00:02]} 31. Rgh1 $1 {[%emt 0:00:06]} b4 $2 {[%emt 0:00:57][%mdl 8192] A mistake that costs the game.} (31... Nc6 $16) 32. cxb4 $18 {[%emt 0:00:57]} c3 {[%emt 0:01:44]} 33. Ba3 {[%emt 0:00:33]} ({Stronger than} 33. bxa5 cxb2 34. Rh7+ Kf8 $11) 33... c2+ {[%emt 0:00:19]} 34. Kxc2 {[%emt 0:00:10]} Rc8+ {[%emt 0:00:01]} 35. Kb1 {[%emt 0:00:08] White threatens Rh7+ and mate.} Rc3 {[%emt 0:00:32]} 36. Bb2 {[%emt 0:00:46]} Nb7 {[%emt 0:00:55]} 37. e6 {[%emt 0:00:31]} Rdc7 {[%emt 0:00:14]} 38. Rd1 {[%emt 0:01:12]} Bg5 {[%emt 0:00:26]} 39. Rc4 {[%emt 0:00:23]} Rc6 40. Rxc3 (40. Rxc6 $142 Kf8 41. Bxc3 Nd8 42. Rc8 fxe6 43. Rd7 Ke8 44. Rh7 Kf8 45. Bb5) 40... Rxc3 {[%emt 0:00:35]} 41. Bc4 {[%emt 0:30:37]} (41. Bxc3+ $142 Kf8 42. Rd7) 41... Bf6 {[%emt 0:30:05]} 42. Bxc3 {[%emt 0:00:22] Weighted Error Value: White=0.32/Black=0.95} 1-0

[Event "Fredericia IM 2022"]
[Site "Fredericia"]
[Date "2022.05.26"]
[Round "3.3"]
[White "Vinter-Schou, Uffe"]
[Black "Fries Nielsen, Jens Ove"]
[Result "1/2-1/2"]
[ECO "E06"]
[WhiteElo "2321"]
[BlackElo "2370"]
[Annotator "TA"]
[PlyCount "61"]
[EventDate "2022.05.25"]
[EventType "tourn"]
[EventCountry "DEN"]
[SourceTitle "playchess.com"]
[Source "ChessBase"]
[SourceQuality "1"]
[TimeControl "40/5400+30:1800+30"]

{[%evp 11,61,8,25,21,43,15,18,14,26,10,34,32,22,0,0,0,0,-4,16,7,8,8,10,12,18,13,10,14,12,0,0,0,0,0,0,0,6,2,19,0,0,0,0,0,0,0,0,0,0,0,0,0]} 1. c4 {[%emt 0:00:02]} Nf6 {[%emt 0:01:47]} 2. Nf3 {[%emt 0:00:21]} e6 {[%emt 0:00:36]} 3. g3 {[%emt 0:05:24]} d5 {[%emt 0:00:38]} 4. d4 {[%emt 0:01:55]} Be7 {[%emt 0:00:37]} 5. Bg2 {[%emt 0:00:07]} O-O {[%emt 0:00:07]} 6. O-O {[%emt 0:00:08]} Na6 {[%emt 0:00:35]} 7. Nc3 {[%emt 0:01:31] E06: Closed Catalan: Early deviations.} c6 {[%emt 0:01:38]} 8. Ne5 {[%emt 0:13:53]} Nd7 {[%emt 0:00:58]} 9. Nxd7 {[%emt 0:07:40]} Bxd7 {[%emt 0:03:30] [#]} 10. Qb3 $146 {[%emt 0:06:15]} ({Predecessor:} 10. cxd5 cxd5 11. a3 Nc7 12. Bf4 Nb5 13. Nxb5 Bxb5 14. Rc1 Rc8 15. Qd2 Qd7 16. Bf3 {½-½ (35) Shen,C (2165)-Charbonneau,P (2505) Chess.com INT 2017}) 10... b5 {[%emt 0:10:01]} 11. cxb5 {[%emt 0:07:49]} cxb5 {[%emt 0:00:24]} 12. a3 {[%emt 0:05:18] The position is equal.} b4 {[%emt 0:01:28]} 13. axb4 {[%emt 0:00:17]} Nxb4 {[%emt 0:00:02]} 14. e4 {[%emt 0:07:23]} Bc6 {[%emt 0:06:34]} (14... dxe4 {is more complex.} 15. Bxe4 Rb8 16. Bf4 Rb6) 15. exd5 {[%emt 0:09:10]} Nxd5 {[%emt 0:07:48]} 16. Nxd5 {[%emt 0:03:50]} Bxd5 {[%emt 0:01:20]} 17. Bxd5 {[%emt 0:00:11]} exd5 {[%emt 0:00:30]} 18. Ra6 {[%emt 0:03:03][%cal Ba1a6,Ba6d6,Bd6d5][%mdl 32]} Bf6 {[%emt 0:03:34]} 19. Be3 {[%emt 0:01:16]} Qd7 {[%emt 0:04:08]} 20. Rc1 {[%emt 0:05:30]} Rfb8 {[%emt 0:07:53]} 21. Qa2 {[%emt 0:02:09]} h5 {[%emt 0:22:30]} 22. Bf4 {[%emt 0:04:45]} Rb4 {[%emt 0:03:28]} 23. Rd6 {[%emt 0:05:44]} Qb5 {[%emt 0:03:12]} 24. Rxd5 {[%emt 0:01:27]} Rxb2 {[%emt 0:01:01] [#] And now ...Qe2 would win.} 25. Qc4 {[%emt 0:01:24]} Qxc4 {[%emt 0:01:27]} 26. Rxc4 {[%emt 0:00:01]} h4 {[%emt 0:02:57]} 27. Kg2 {[%emt 0:00:21]} hxg3 {[%emt 0:00:15]} 28. hxg3 {[%emt 0:00:03]} a5 {[%emt 0:02:03]} 29. Ra4 {[%emt 0:01:15]} Rb4 {[%emt 0:00:50]} 30. Raxa5 {[%emt 0:00:58]} Rxa5 {[%emt 0:00:07]} 31. Rxa5 {[%emt 0:00:06] A balanced but interesting game.  Weighted Error Value: White=0.06 (flawless) /Black=0.05 (flawless)} 1/2-1/2

[Event "Fredericia IM 2022"]
[Site "Fredericia"]
[Date "2022.05.26"]
[Round "3.3"]
[White "Thorsbro, Peter"]
[Black "Fries Nielsen, Jens Ove"]
[Result "*"]
[WhiteElo "2192"]
[BlackElo "2370"]
[Annotator "TA"]
[PlyCount "28"]
[EventDate "2022.05.25"]
[EventType "tourn"]
[EventCountry "DEN"]
[SourceTitle "playchess.com"]
[Source "ChessBase"]
[SourceQuality "1"]
[TimeControl "40/5400+30:1800+30"]

{[%evp 11,28,20,25,20,58,14,8,20,23,-2,25,31,16,0,0,0,7,0,13]} 1. c4 {[%emt 0:00:02]} Nf6 {[%emt 0:01:47]} 2. Nf3 {[%emt 0:00:21]} e6 {[%emt 0:00:36]} 3. g3 {[%emt 0:05:24]} d5 {[%emt 0:00:38]} 4. d4 {[%emt 0:01:55]} Be7 {[%emt 0:00:37]} 5. Bg2 {[%emt 0:00:07]} O-O {[%emt 0:00:07]} 6. O-O {[%emt 0:00:08]} Na6 {[%emt 0:00:35]} 7. Nc3 {[%emt 0:01:31] E06: Closed Catalan: Early deviations.} c6 {[%emt 0:01:38]} 8. Ne5 {[%emt 0:13:53]} Nd7 {[%emt 0:00:58]} 9. Nxd7 {[%emt 0:07:40]} Bxd7 {[%emt 0:03:30] [#]} 10. Qb3 $146 {[%emt 0:06:15]} ({Predecessor:} 10. cxd5 cxd5 11. a3 Nc7 12. Bf4 Nb5 13. Nxb5 Bxb5 14. Rc1 Rc8 15. Qd2 Qd7 16. Bf3 {½-½ (35) Shen,C (2165)-Charbonneau,P (2505) Chess.com INT 2017}) 10... b5 {[%emt 0:10:01]} 11. cxb5 {[%emt 0:07:49]} cxb5 {[%emt 0:00:24]} 12. a3 {[%emt 0:05:18] The position is equal.} b4 {[%emt 0:01:28]} 13. axb4 {[%emt 0:00:17]} Nxb4 {[%emt 0:00:02]} 14. e4 {[%emt 0:07:23]} Bc6 {[%emt 0:06:34] Weighted Error Value: White=0.13 (very precise) /Black=0.13 (very precise)} *

[Event "Fredericia IM 2022"]
[Site "Fredericia"]
[Date "2022.05.26"]
[Round "3.4"]
[White "Storme, Isak"]
[Black "Egilstoft, Rogvi"]
[Result "1-0"]
[ECO "C70"]
[WhiteElo "2388"]
[BlackElo "2334"]
[Annotator "TA"]
[PlyCount "83"]
[EventDate "2022.05.25"]
[EventType "tourn"]
[EventCountry "DEN"]
[SourceTitle "playchess.com"]
[Source "ChessBase"]
[SourceQuality "1"]
[TimeControl "40/5400+30:1800+30"]

{[%evp 10,83,41,28,42,37,41,33,33,32,35,24,35,35,36,31,47,29,40,39,36,29,54,39,84,82,100,60,61,43,29,0,35,32,20,19,20,33,83,78,169,170,170,168,171,162,190,190,311,337,312,326,529,530,520,512,530,524,561,556,731,737,784,775,984,936,1115,1099,956,944,928,907,838,675,990,918]} 1. e4 {[%emt 0:00:07]} e5 {[%emt 0:00:11]} 2. Nf3 {[%emt 0:00:07]} Nc6 {[%emt 0:00:16]} 3. Bb5 {[%emt 0:00:12]} a6 {[%emt 0:01:22]} 4. Ba4 {[%emt 0:00:15]} Bc5 {[%emt 0:00:16]} 5. c3 {[%emt 0:01:38]} Nge7 {[%emt 0:00:52]} 6. O-O {[%emt 0:10:20]} Ba7 {[%emt 0:00:25] C64: Ruy Lopez: Classical Defence (3...Bc5) except 4 0-0 Nf6.} 7. d4 {[%emt 0:01:54]} Ng6 {[%emt 0:00:38]} 8. Bg5 {[%emt 0:10:45]} f6 {[%emt 0:01:20] White is slightly better.} 9. Be3 {[%emt 0:00:27]} O-O {[%emt 0:04:36]} 10. Nbd2 {[%emt 0:06:22][%cal Bb1d2,Bd2f1,Bf1g3][%mdl 32]} d6 {[%emt 0:01:29]} 11. Re1 {[%emt 0:01:48]} Kh8 {[%emt 0:05:35]} 12. h3 {[%emt 0:13:40]} Nce7 {[%emt 0:09:19] [#]} 13. Nf1 $146 {[%emt 0:02:00]} ({Predecessor:} 13. Bb3 Qe8 14. Nf1 Bd7 15. Ng3 a5 16. Bc2 a4 17. a3 b5 18. Qd2 Nc6 19. Rad1 {0-1 (37) Bellahcene,B (2528)-Ivanisevic,I (2604) Dubai 2021}) 13... c5 {[%emt 0:02:33]} 14. Ng3 {[%emt 0:05:01]} b5 {[%emt 0:03:29]} 15. Bc2 {[%emt 0:00:48]} Bb7 {[%emt 0:00:36]} 16. Qd2 {[%emt 0:07:17]} Rc8 {[%emt 0:02:07]} 17. d5 {[%emt 0:00:32]} Bb6 {[%emt 0:01:49]} 18. b3 {[%emt 0:06:14] White is more active.} c4 {[%emt 0:00:47]} 19. b4 {[%emt 0:01:38]} Bxe3 {[%emt 0:01:43]} 20. Qxe3 {[%emt 0:01:37]} f5 {[%emt 0:03:53]} 21. Nxf5 {[%emt 0:02:07]} Nxf5 {[%emt 0:00:25]} 22. exf5 {[%emt 0:00:12]} Nf4 {[%emt 0:00:32]} 23. Rad1 {[%emt 0:01:18]} Qd7 {[%emt 0:12:34]} ({Not} 23... Nxd5 24. Qe4 $16) ({Black should play} 23... Bxd5 $14 24. g3 Bxf3 25. Qxf3 Nxh3+ 26. Kg2 Ng5) 24. Qe4 {[%emt 0:02:52] White leaves nothing to chance now.} g6 {[%emt 0:29:00] [#]} (24... Rf6 $16) 25. Nxe5 $1 $18 {[%emt 0:02:15][%mdl 512]} Qxf5 {[%emt 0:02:53]} 26. Qxf5 {[%emt 0:01:09]} gxf5 {[%emt 0:00:03]} 27. Nc6 {[%emt 0:02:54]} Rg8 {[%emt 0:02:39]} 28. g3 {[%emt 0:02:15] Hoping for Ne7.} ({Inferior is} 28. Bxf5 Rxg2+ 29. Kh1 Rf8 $17) 28... Nxh3+ {[%emt 0:00:18]} (28... Bxc6 $142 29. dxc6 Nd3) 29. Kf1 {[%emt 0:01:57]} Rcf8 {[%emt 0:00:33]} 30. Re7 {[%emt 0:02:14]} Rg7 $2 {[%emt 0:05:18]} (30... Bc8 {is a better defense.} 31. Rd4 Ng5) 31. Rxg7 {[%emt 0:00:44] White is clearly winning.} Kxg7 {[%emt 0:00:02]} 32. f4 {[%emt 0:00:17]} Kf6 {[%emt 0:02:52]} 33. Kg2 {[%emt 0:00:28]} Re8 {[%emt 0:00:19]} 34. Kxh3 {[%emt 0:00:57]} Re2 {[%emt 0:00:49]} 35. Nd4 {[%emt 0:01:02]} Re3 {[%emt 0:00:22]} 36. Bxf5 {[%emt 0:01:26]} Rxc3 {[%emt 0:01:00]} 37. Be6 {[%emt 0:02:10]} h5 {[%emt 0:01:09]} 38. Kh4 {[%emt 0:01:26]} Ra3 {[%emt 0:00:16]} 39. Rd2 {[%emt 0:00:52]} Re3 {[%emt 0:00:06]} 40. Nf5 {[%emt 0:03:59]} Re1 {[%emt 0:00:27]} 41. Kxh5 {[%emt 0:30:27]} c3 {[%emt 0:30:12]} 42. Rc2 {[%emt 0:02:16] Weighted Error Value: White=0.08 (flawless) /Black=0.30} 1-0